[Event "Early-Titled-Tuesday-Blitz-October-17-2023"]
[Site "Chess.com"]
[Date "2023.10.17"]
[Round "1"]
[White "Sina_Movahed"]
[Black "only_strong_moves"]
[Result "1-0"]
[WhiteElo "3001"]
[BlackElo "2517"]
[TimeControl "180+1"]
[EndTime "8:05:55 PDT"]
[Termination "Sina_Movahed won by resignation"]

1. e4 {[%clk 0:03:00.9]} 1... e5 {[%clk 0:02:59.5]} 2. Nf3 {[%clk 0:03:00.3]}
2... Nc6 {[%clk 0:02:59.7]} 3. Bb5 {[%clk 0:03:00.7]} 3... Nf6 {[%clk
0:02:59.9]} 4. O-O {[%clk 0:03:00.2]} 4... Nxe4 {[%clk 0:02:59.8]} 5. Re1 {[%clk
0:03:00.8]} 5... Nd6 {[%clk 0:03:00.4]} 6. Nxe5 {[%clk 0:03:01.5]} 6... Be7
{[%clk 0:03:00.3]} 7. Bd3 {[%clk 0:03:02]} 7... Nxe5 {[%clk 0:03:00.2]} 8. Rxe5
{[%clk 0:03:01.3]} 8... O-O {[%clk 0:03:00.5]} 9. Nc3 {[%clk 0:03:01.8]} 9...
Bf6 {[%clk 0:02:58.9]} 10. Re3 {[%clk 0:03:02.1]} 10... g6 {[%clk 0:02:56.7]}
11. Nd5 {[%clk 0:03:02.2]} 11... Bg7 {[%clk 0:02:56.3]} 12. c3 {[%clk
0:03:00.3]} 12... Re8 {[%clk 0:02:55.9]} 13. Bc2 {[%clk 0:02:58.4]} 13... c6
{[%clk 0:02:54.7]} 14. Nf4 {[%clk 0:02:57.3]} 14... Nc4 {[%clk 0:02:41]} 15.
Rxe8+ {[%clk 0:02:55.4]} 15... Qxe8 {[%clk 0:02:41.9]} 16. d3 {[%clk 0:02:56.3]}
16... Nb6 {[%clk 0:02:39.1]} 17. a4 {[%clk 0:02:55.6]} 17... d5 {[%clk 0:02:34]}
18. a5 {[%clk 0:02:54.6]} 18... Nd7 {[%clk 0:02:34]} 19. a6 {[%clk 0:02:54.7]}
19... b6 {[%clk 0:02:30.2]} 20. Be3 {[%clk 0:02:51.8]} 20... Ne5 {[%clk
0:02:26.4]} 21. h3 {[%clk 0:02:51.4]} 21... h6 {[%clk 0:02:15.9]} 22. Qd2 {[%clk
0:02:42.1]} 22... Kh7 {[%clk 0:02:15.4]} 23. Re1 {[%clk 0:02:41.2]} 23... Qd8
{[%clk 0:02:04.5]} 24. Bd4 {[%clk 0:02:16.2]} 24... Qd6 {[%clk 0:01:58.2]} 25.
Qe3 {[%clk 0:02:13.7]} 25... f6 {[%clk 0:01:58]} 26. Qg3 {[%clk 0:02:10.2]}
26... c5 {[%clk 0:01:52.3]} 27. Be3 {[%clk 0:02:07.5]} 27... d4 {[%clk
0:01:46.3]} 28. cxd4 {[%clk 0:02:03.2]} 28... cxd4 {[%clk 0:01:47.2]} 29. Bd2
{[%clk 0:02:02.5]} 29... Qc6 {[%clk 0:01:30]} 30. Bb3 {[%clk 0:01:58.5]} 30...
Qb5 {[%clk 0:00:31.8]} 31. Bd5 {[%clk 0:01:43.4]} 31... Rb8 {[%clk 0:00:31.7]}
32. Rxe5 {[%clk 0:01:41.6]} 32... fxe5 {[%clk 0:00:32.1]} 33. Qxg6+ {[%clk
0:01:41.4]} 33... Kh8 {[%clk 0:00:32.5]} 34. Be4 {[%clk 0:01:36.5]} 34... Kg8
{[%clk 0:00:33]} 35. Nd5 {[%clk 0:01:35.6]} 35... Kf8 {[%clk 0:00:09.5]} 36.
Qd6+ {[%clk 0:01:34.1]} 1-0

[Event "Early-Titled-Tuesday-Blitz-October-17-2023"]
[Site "Chess.com"]
[Date "2023.10.17"]
[Round "1"]
[White "RamonManon0g"]
[Black "DTChess"]
[Result "1/2-1/2"]
[WhiteElo "2334"]
[BlackElo "2620"]
[TimeControl "180+1"]
[EndTime "8:05:55 PDT"]
[Termination "Game drawn by repetition"]

1. e4 {[%clk 0:02:58.8]} 1... c6 {[%clk 0:02:59.8]} 2. d4 {[%clk 0:02:58]} 2...
d5 {[%clk 0:03:00]} 3. e5 {[%clk 0:02:58.4]} 3... Bf5 {[%clk 0:02:59.9]} 4. Nd2
{[%clk 0:02:58]} 4... e6 {[%clk 0:03:00]} 5. Nb3 {[%clk 0:02:58.3]} 5... Nd7
{[%clk 0:02:59.8]} 6. Nf3 {[%clk 0:02:58.7]} 6... h6 {[%clk 0:02:59.8]} 7. Be2
{[%clk 0:02:59]} 7... g5 {[%clk 0:02:59.7]} 8. O-O {[%clk 0:02:59.9]} 8... Ne7
{[%clk 0:02:59.6]} 9. c3 {[%clk 0:02:58.5]} 9... Bg7 {[%clk 0:02:59.4]} 10. h3
{[%clk 0:02:58]} 10... O-O {[%clk 0:02:59.2]} 11. Bd3 {[%clk 0:02:58.2]} 11...
Qc7 {[%clk 0:02:54.9]} 12. Be3 {[%clk 0:02:55.6]} 12... Rae8 {[%clk 0:02:54.4]}
13. Qc2 {[%clk 0:02:50.6]} 13... Bxd3 {[%clk 0:02:54.3]} 14. Qxd3 {[%clk
0:02:50.6]} 14... f6 {[%clk 0:02:53]} 15. exf6 {[%clk 0:02:43.3]} 15... Bxf6
{[%clk 0:02:48.8]} 16. Nh2 {[%clk 0:02:42.7]} 16... e5 {[%clk 0:02:45.9]} 17. f3
{[%clk 0:02:38.7]} 17... b6 {[%clk 0:02:40.8]} 18. Rae1 {[%clk 0:02:33]} 18...
Bg7 {[%clk 0:02:40.5]} 19. Ng4 {[%clk 0:02:25.3]} 19... Nf5 {[%clk 0:02:22.1]}
20. Bf2 {[%clk 0:02:22.1]} 20... Qd6 {[%clk 0:02:13.7]} 21. Re2 {[%clk 0:02:05]}
21... c5 {[%clk 0:01:54.9]} 22. dxe5 {[%clk 0:01:59]} 22... Nxe5 {[%clk
0:01:52.8]} 23. Nxe5 {[%clk 0:01:58.6]} 23... Bxe5 {[%clk 0:01:52.6]} 24. Nd2
{[%clk 0:01:47.7]} 24... Bh2+ {[%clk 0:01:51.9]} 25. Kh1 {[%clk 0:01:47.4]}
25... c4 {[%clk 0:01:48.8]} 26. Nxc4 {[%clk 0:01:40.1]} 26... dxc4 {[%clk
0:01:47.4]} 27. Qxc4+ {[%clk 0:01:41]} 27... Kg7 {[%clk 0:01:43.8]} 28. Rxe8
{[%clk 0:00:56.8]} 28... Rxe8 {[%clk 0:01:41.8]} 29. Qg4 {[%clk 0:00:47.3]}
29... Rf8 {[%clk 0:01:30.3]} 30. h4 {[%clk 0:00:41.7]} 30... Bf4 {[%clk
0:01:29.2]} 31. h5 {[%clk 0:00:38.7]} 31... Ng3+ {[%clk 0:01:20.7]} 32. Bxg3
{[%clk 0:00:37.5]} 32... Bxg3 {[%clk 0:01:21.1]} 33. Qe4 {[%clk 0:00:32]} 33...
Qf4 {[%clk 0:01:12.2]} 34. Qg6+ {[%clk 0:00:27.8]} 34... Kh8 {[%clk 0:01:09.9]}
35. Qxh6+ {[%clk 0:00:27.9]} 35... Kg8 {[%clk 0:01:10.4]} 36. Qg6+ {[%clk
0:00:28.2]} 36... Kh8 {[%clk 0:01:06.6]} 37. Qh6+ {[%clk 0:00:28.3]} 37... Kg8
{[%clk 0:01:06.2]} 38. Qg6+ {[%clk 0:00:28.7]} 38... Kh8 {[%clk 0:01:06.2]} 39.
Qh6+ {[%clk 0:00:29.1]} 1/2-1/2

[Event "Early-Titled-Tuesday-Blitz-October-17-2023"]
[Site "Chess.com"]
[Date "2023.10.17"]
[Round "1"]
[White "Felix-Rose"]
[Black "RandomNoob04"]
[Result "0-1"]
[WhiteElo "2312"]
[BlackElo "2621"]
[TimeControl "180+1"]
[EndTime "8:05:55 PDT"]
[Termination "RandomNoob04 won on time"]

1. e4 {[%clk 0:03:00.7]} 1... e5 {[%clk 0:02:59.7]} 2. Nf3 {[%clk 0:03:00.3]}
2... Nf6 {[%clk 0:02:59.6]} 3. Nxe5 {[%clk 0:02:59.5]} 3... Nc6 {[%clk 0:03:00]}
4. Nxc6 {[%clk 0:02:59.1]} 4... dxc6 {[%clk 0:03:00.9]} 5. d3 {[%clk 0:02:55.7]}
5... Bc5 {[%clk 0:03:00.5]} 6. Be2 {[%clk 0:02:54.8]} 6... h5 {[%clk 0:02:59.9]}
7. h3 {[%clk 0:02:45.8]} 7... Qd4 {[%clk 0:02:58.7]} 8. O-O {[%clk 0:02:35.9]}
8... Qe5 {[%clk 0:02:58.4]} 9. Nc3 {[%clk 0:02:28.1]} 9... Ng4 {[%clk
0:02:43.8]} 10. Bxg4 {[%clk 0:02:16.4]} 10... hxg4 {[%clk 0:02:44.7]} 11. d4
{[%clk 0:02:02.4]} 11... Bxd4 {[%clk 0:02:42.4]} 12. Bf4 {[%clk 0:02:02.5]}
12... Qf6 {[%clk 0:02:18.1]} 13. Ne2 {[%clk 0:01:47.7]} 13... Bb6 {[%clk
0:02:11]} 14. e5 {[%clk 0:01:38.3]} 14... Qg6 {[%clk 0:02:02.6]} 15. Qd3 {[%clk
0:01:00.2]} 15... Bf5 {[%clk 0:01:58.7]} 16. Qg3 {[%clk 0:01:00.3]} 16... gxh3
{[%clk 0:01:52]} 17. Qxg6 {[%clk 0:00:57.7]} 17... Bxg6 {[%clk 0:01:52.9]} 18.
e6 {[%clk 0:00:50.2]} 18... Be4 {[%clk 0:01:12.9]} 19. exf7+ {[%clk 0:00:42.7]}
19... Kxf7 {[%clk 0:01:10.9]} 20. gxh3 {[%clk 0:00:39]} 20... Rxh3 {[%clk
0:01:09.6]} 21. Ng3 {[%clk 0:00:25.4]} 21... Bf3 {[%clk 0:01:09.1]} 22. Be3
{[%clk 0:00:20.2]} 22... Rah8 {[%clk 0:01:06.6]} 0-1

[Event "Early-Titled-Tuesday-Blitz-October-17-2023"]
[Site "Chess.com"]
[Date "2023.10.17"]
[Round "1"]
[White "Rital44"]
[Black "AradNazari"]
[Result "0-1"]
[WhiteElo "2498"]
[BlackElo "2860"]
[TimeControl "180+1"]
[EndTime "8:05:56 PDT"]
[Termination "AradNazari won by resignation"]

1. d4 {[%clk 0:02:59.9]} 1... Nf6 {[%clk 0:02:58.1]} 2. c4 {[%clk 0:02:59.7]}
2... g6 {[%clk 0:02:58.4]} 3. Nf3 {[%clk 0:02:58.9]} 3... Bg7 {[%clk 0:02:55.3]}
4. Nc3 {[%clk 0:02:59.3]} 4... d5 {[%clk 0:02:54.9]} 5. Bg5 {[%clk 0:02:59.9]}
5... Ne4 {[%clk 0:02:54.3]} 6. Bh4 {[%clk 0:03:00.6]} 6... Nxc3 {[%clk
0:02:50.4]} 7. bxc3 {[%clk 0:03:01.5]} 7... dxc4 {[%clk 0:02:50.9]} 8. e3 {[%clk
0:03:02.1]} 8... b5 {[%clk 0:02:50.4]} 9. Qb1 {[%clk 0:03:02.7]} 9... c6 {[%clk
0:02:47.4]} 10. Be2 {[%clk 0:03:01.9]} 10... O-O {[%clk 0:02:46.6]} 11. O-O
{[%clk 0:02:59.5]} 11... a6 {[%clk 0:02:39.8]} 12. a4 {[%clk 0:02:58.3]} 12...
Qc7 {[%clk 0:02:31.5]} 13. Rd1 {[%clk 0:02:40.5]} 13... Nd7 {[%clk 0:02:23]} 14.
Bxe7 {[%clk 0:02:39.5]} 14... Re8 {[%clk 0:02:19.9]} 15. Bh4 {[%clk 0:02:39.3]}
15... Nb6 {[%clk 0:02:17.2]} 16. Bg3 {[%clk 0:02:36.1]} 16... Qb7 {[%clk
0:02:15.7]} 17. Ne5 {[%clk 0:02:23.3]} 17... Nxa4 {[%clk 0:02:07]} 18. Rxa4
{[%clk 0:02:20.4]} 18... bxa4 {[%clk 0:02:06]} 19. Bxc4 {[%clk 0:02:15.1]} 19...
Bxe5 {[%clk 0:01:46.3]} 20. Bxe5 {[%clk 0:02:13.5]} 20... Qxb1 {[%clk
0:01:42.5]} 21. Rxb1 {[%clk 0:02:13.5]} 21... Be6 {[%clk 0:01:39.6]} 22. Bxe6
{[%clk 0:02:04.5]} 22... Rxe6 {[%clk 0:01:40.5]} 23. Ra1 {[%clk 0:02:04.9]}
23... c5 {[%clk 0:01:35.1]} 24. Rxa4 {[%clk 0:02:04]} 24... cxd4 {[%clk
0:01:35.5]} 25. cxd4 {[%clk 0:02:04.3]} 25... Rb6 {[%clk 0:01:28.5]} 26. h3
{[%clk 0:02:01.9]} 26... a5 {[%clk 0:01:24.6]} 27. d5 {[%clk 0:01:52.2]} 27...
Rb4 {[%clk 0:01:24.8]} 28. Ra3 {[%clk 0:01:48.6]} 28... a4 {[%clk 0:01:24.6]}
29. Kf1 {[%clk 0:01:42]} 29... f5 {[%clk 0:01:08.3]} 30. Ke2 {[%clk 0:01:39.9]}
30... Rb5 {[%clk 0:00:54.3]} 31. Rd3 {[%clk 0:01:23.4]} 31... a3 {[%clk
0:00:54.6]} 32. Bf6 {[%clk 0:01:20.5]} 32... Kf7 {[%clk 0:00:42.7]} 33. Ba1
{[%clk 0:01:00.6]} 33... Rb1 {[%clk 0:00:38.2]} 34. Be5 {[%clk 0:00:57.3]} 34...
a2 {[%clk 0:00:37.5]} 35. d6 {[%clk 0:00:57.8]} 35... a1=Q {[%clk 0:00:37.7]}
36. Bxa1 {[%clk 0:00:57.8]} 36... Rbxa1 {[%clk 0:00:38.6]} 37. d7 {[%clk
0:00:57.4]} 37... Rd8 {[%clk 0:00:39.2]} 0-1

[Event "Early-Titled-Tuesday-Blitz-October-17-2023"]
[Site "Chess.com"]
[Date "2023.10.17"]
[Round "1"]
[White "wonderfultime"]
[Black "Ural_bogatyr"]
[Result "1-0"]
[WhiteElo "2981"]
[BlackElo "2516"]
[TimeControl "180+1"]
[EndTime "8:06:02 PDT"]
[Termination "wonderfultime won by resignation"]

1. d4 {[%clk 0:03:00.9]} 1... Nf6 {[%clk 0:02:59.6]} 2. Nf3 {[%clk 0:02:59.9]}
2... d5 {[%clk 0:02:59.4]} 3. Bf4 {[%clk 0:02:59.4]} 3... c5 {[%clk 0:02:59.1]}
4. c3 {[%clk 0:02:58.1]} 4... Nc6 {[%clk 0:02:58.5]} 5. e3 {[%clk 0:02:57.6]}
5... Nh5 {[%clk 0:02:57.2]} 6. Be5 {[%clk 0:02:57.6]} 6... e6 {[%clk 0:02:53.8]}
7. Nbd2 {[%clk 0:02:57.2]} 7... f6 {[%clk 0:02:52.2]} 8. Bg3 {[%clk 0:02:57.2]}
8... Nxg3 {[%clk 0:02:49.3]} 9. hxg3 {[%clk 0:02:57.3]} 9... e5 {[%clk
0:02:37.1]} 10. dxe5 {[%clk 0:02:55.9]} 10... fxe5 {[%clk 0:02:33.9]} 11. e4
{[%clk 0:02:56.3]} 11... Be6 {[%clk 0:02:19.6]} 12. exd5 {[%clk 0:02:48.7]}
12... Bxd5 {[%clk 0:02:20.5]} 13. Bc4 {[%clk 0:02:49.1]} 13... Be7 {[%clk
0:02:08.3]} 14. Qc2 {[%clk 0:02:40.4]} 14... Bxc4 {[%clk 0:01:22.8]} 15. Nxc4
{[%clk 0:02:38.3]} 15... Qd5 {[%clk 0:01:15.8]} 16. Ne3 {[%clk 0:02:35.7]} 16...
Qf7 {[%clk 0:01:07.7]} 17. Rxh7 {[%clk 0:02:19.2]} 17... O-O-O {[%clk
0:01:07.2]} 18. Rxh8 {[%clk 0:01:48.2]} 18... Rxh8 {[%clk 0:01:08.1]} 19. Ke2
{[%clk 0:01:48.6]} 19... Kb8 {[%clk 0:00:55.2]} 20. Qf5 {[%clk 0:01:40.9]} 20...
Bf6 {[%clk 0:00:52.6]} 21. Nd2 {[%clk 0:01:30.7]} 21... Rd8 {[%clk 0:00:42.1]}
22. Ne4 {[%clk 0:01:28.7]} 22... Ne7 {[%clk 0:00:31.5]} 23. Qf3 {[%clk
0:01:17.9]} 23... Nd5 {[%clk 0:00:26.2]} 24. Rd1 {[%clk 0:01:15.3]} 24... Kc7
{[%clk 0:00:15.1]} 25. Rxd5 {[%clk 0:01:04.1]} 25... Rxd5 {[%clk 0:00:14.4]} 26.
Nxf6 {[%clk 0:01:04.8]} 26... Rd8 {[%clk 0:00:11.8]} 27. Nfd5+ {[%clk
0:01:03.9]} 27... Kb8 {[%clk 0:00:11]} 28. Qxf7 {[%clk 0:01:03.7]} 1-0

[Event "Early-Titled-Tuesday-Blitz-October-17-2023"]
[Site "Chess.com"]
[Date "2023.10.17"]
[Round "1"]
[White "igorkovalenko"]
[Black "maximnovik"]
[Result "1-0"]
[WhiteElo "2884"]
[BlackElo "2506"]
[TimeControl "180+1"]
[EndTime "8:06:04 PDT"]
[Termination "igorkovalenko won on time"]

1. c4 {[%clk 0:02:38.9]} 1... Nf6 {[%clk 0:02:10.7]} 2. Nf3 {[%clk 0:02:35]}
2... g6 {[%clk 0:02:07.1]} 3. b4 {[%clk 0:02:33.8]} 3... Bg7 {[%clk 0:02:02]} 4.
Bb2 {[%clk 0:02:33.8]} 4... O-O {[%clk 0:01:57.5]} 5. e3 {[%clk 0:02:33.7]} 5...
d6 {[%clk 0:01:52.8]} 6. d4 {[%clk 0:02:30.1]} 6... e5 {[%clk 0:01:49.7]} 7.
dxe5 {[%clk 0:02:30.1]} 7... Nfd7 {[%clk 0:01:46.4]} 8. Nbd2 {[%clk 0:02:25.4]}
8... Nc6 {[%clk 0:01:41.2]} 9. Qb3 {[%clk 0:02:22.6]} 9... Ncxe5 {[%clk
0:01:37.2]} 10. Be2 {[%clk 0:02:22.1]} 10... a5 {[%clk 0:01:32.2]} 11. Nxe5
{[%clk 0:02:21.8]} 11... Bxe5 {[%clk 0:01:24.2]} 12. Bxe5 {[%clk 0:02:20.8]}
12... Nxe5 {[%clk 0:01:19.2]} 13. b5 {[%clk 0:02:20.1]} 13... Nd7 {[%clk
0:01:14.4]} 14. O-O {[%clk 0:02:18.4]} 14... Nc5 {[%clk 0:01:11.1]} 15. Qc3
{[%clk 0:02:17.1]} 15... f5 {[%clk 0:01:05.7]} 16. Bf3 {[%clk 0:02:16.7]} 16...
Qf6 {[%clk 0:00:57.8]} 17. Qd4 {[%clk 0:02:16.3]} 17... Be6 {[%clk 0:00:50.3]}
18. Nb3 {[%clk 0:02:04.3]} 18... Rad8 {[%clk 0:00:22.3]} 19. Nxa5 {[%clk
0:01:58.1]} 19... f4 {[%clk 0:00:18.8]} 20. Rfe1 {[%clk 0:01:24.6]} 20... fxe3
{[%clk 0:00:15.3]} 21. Qxe3 {[%clk 0:01:18.1]} 21... Bf7 {[%clk 0:00:08.5]} 22.
Rac1 {[%clk 0:01:11.1]} 22... Rde8 {[%clk 0:00:04.8]} 23. Qd2 {[%clk 0:01:10.8]}
23... b6 {[%clk 0:00:01.2]} 24. Rxe8 {[%clk 0:01:09.8]} 1-0

[Event "Early-Titled-Tuesday-Blitz-October-17-2023"]
[Site "Chess.com"]
[Date "2023.10.17"]
[Round "1"]
[White "LUISMIGUELOV"]
[Black "MFatigue"]
[Result "0-1"]
[WhiteElo "2142"]
[BlackElo "2552"]
[TimeControl "180+1"]
[EndTime "8:06:04 PDT"]
[Termination "MFatigue won by resignation"]

1. e4 {[%clk 0:02:58.5]} 1... e6 {[%clk 0:03:00.6]} 2. b3 {[%clk 0:02:57.2]}
2... d5 {[%clk 0:03:00.6]} 3. Bb2 {[%clk 0:02:57.2]} 3... a6 {[%clk 0:03:00.5]}
4. Nc3 {[%clk 0:02:55.1]} 4... d4 {[%clk 0:02:58]} 5. Nce2 {[%clk 0:02:54]} 5...
c5 {[%clk 0:02:58.5]} 6. d3 {[%clk 0:02:48.5]} 6... Nc6 {[%clk 0:02:59]} 7. g3
{[%clk 0:02:48.4]} 7... e5 {[%clk 0:02:59.5]} 8. Bg2 {[%clk 0:02:47.9]} 8... Be6
{[%clk 0:02:57]} 9. f4 {[%clk 0:02:44.6]} 9... g6 {[%clk 0:02:53.6]} 10. Nf3
{[%clk 0:02:42.5]} 10... Qd7 {[%clk 0:02:54.2]} 11. fxe5 {[%clk 0:02:41.3]}
11... Bg7 {[%clk 0:02:52.5]} 12. O-O {[%clk 0:02:37.6]} 12... Nxe5 {[%clk
0:02:46.5]} 13. Nxe5 {[%clk 0:02:37]} 13... Bxe5 {[%clk 0:02:47.4]} 14. c3
{[%clk 0:02:31.4]} 14... dxc3 {[%clk 0:02:42]} 15. Bxc3 {[%clk 0:02:30.3]} 15...
Bxc3 {[%clk 0:02:41.1]} 16. Nxc3 {[%clk 0:02:26.5]} 16... Qd4+ {[%clk
0:02:41.1]} 17. Kh1 {[%clk 0:02:18.2]} 17... Qxc3 {[%clk 0:02:41.1]} 18. Rc1
{[%clk 0:02:18.6]} 18... Qd4 {[%clk 0:02:40]} 19. e5 {[%clk 0:02:15.4]} 19...
O-O-O {[%clk 0:02:10.1]} 20. Rf4 {[%clk 0:02:07.3]} 20... Qxd3 {[%clk
0:02:02.4]} 21. Rxc5+ {[%clk 0:02:04]} 21... Kb8 {[%clk 0:02:02.6]} 22. Qxd3
{[%clk 0:01:46]} 22... Rxd3 {[%clk 0:02:03.5]} 23. h4 {[%clk 0:01:38.4]} 23...
Ne7 {[%clk 0:01:30.2]} 24. Rb4 {[%clk 0:01:36.6]} 24... b5 {[%clk 0:01:30.6]}
25. a4 {[%clk 0:01:32.7]} 25... Rxb3 {[%clk 0:01:30.3]} 26. Rxb3 {[%clk
0:01:30.2]} 26... Bxb3 {[%clk 0:01:31.2]} 27. axb5 {[%clk 0:01:30.2]} 27... Rc8
{[%clk 0:01:24.6]} 28. Rxc8+ {[%clk 0:01:26.7]} 28... Kxc8 {[%clk 0:01:25.5]}
29. bxa6 {[%clk 0:01:26.8]} 29... Kb8 {[%clk 0:01:26]} 30. h5 {[%clk 0:01:25]}
30... Ka7 {[%clk 0:01:19.5]} 31. hxg6 {[%clk 0:01:24.6]} 31... hxg6 {[%clk
0:01:15.8]} 32. Bb7 {[%clk 0:01:22.7]} 32... Bd5+ {[%clk 0:00:50.9]} 33. Bxd5
{[%clk 0:01:18.9]} 33... Nxd5 {[%clk 0:00:51.8]} 34. Kg2 {[%clk 0:01:18.9]}
34... Kxa6 {[%clk 0:00:48.3]} 35. Kf3 {[%clk 0:01:19.3]} 35... Kb6 {[%clk
0:00:48.1]} 36. Ke4 {[%clk 0:01:19.7]} 36... Nc7 {[%clk 0:00:41]} 37. Kf4 {[%clk
0:01:19.1]} 37... Ne6+ {[%clk 0:00:40.7]} 38. Ke4 {[%clk 0:01:18.9]} 38... Kc5
{[%clk 0:00:40.7]} 0-1

[Event "Early-Titled-Tuesday-Blitz-October-17-2023"]
[Site "Chess.com"]
[Date "2023.10.17"]
[Round "1"]
[White "js20000"]
[Black "a-z30"]
[Result "1-0"]
[WhiteElo "2875"]
[BlackElo "2504"]
[TimeControl "180+1"]
[EndTime "8:06:05 PDT"]
[Termination "js20000 won by resignation"]

1. Nf3 {[%clk 0:03:00.7]} 1... Nf6 {[%clk 0:02:58.4]} 2. c4 {[%clk 0:02:59.6]}
2... e6 {[%clk 0:02:55.1]} 3. b3 {[%clk 0:02:59.3]} 3... d5 {[%clk 0:02:56]} 4.
e3 {[%clk 0:02:58.8]} 4... Be7 {[%clk 0:02:56.2]} 5. Bb2 {[%clk 0:02:58.8]} 5...
O-O {[%clk 0:02:56.8]} 6. Be2 {[%clk 0:02:59]} 6... b6 {[%clk 0:02:57.2]} 7. O-O
{[%clk 0:02:58.3]} 7... Bb7 {[%clk 0:02:57.5]} 8. Nc3 {[%clk 0:02:57.8]} 8...
Nbd7 {[%clk 0:02:49.2]} 9. cxd5 {[%clk 0:02:57.3]} 9... Nxd5 {[%clk 0:02:45.8]}
10. Nxd5 {[%clk 0:02:55.7]} 10... Bxd5 {[%clk 0:02:44.6]} 11. Qc2 {[%clk
0:02:55.4]} 11... Bf6 {[%clk 0:02:40]} 12. d4 {[%clk 0:02:49.1]} 12... c5 {[%clk
0:02:39.6]} 13. Rfd1 {[%clk 0:02:43.2]} 13... Rc8 {[%clk 0:02:30.5]} 14. Qd2
{[%clk 0:02:29.3]} 14... Bxf3 {[%clk 0:02:23.3]} 15. Bxf3 {[%clk 0:02:27.9]}
15... cxd4 {[%clk 0:02:22.9]} 16. exd4 {[%clk 0:02:19.3]} 16... g6 {[%clk
0:01:46.6]} 17. Rac1 {[%clk 0:02:16.5]} 17... Rxc1 {[%clk 0:01:41.5]} 18. Rxc1
{[%clk 0:02:17.4]} 18... Bg7 {[%clk 0:01:37]} 19. Ba3 {[%clk 0:02:15.3]} 19...
Re8 {[%clk 0:01:35.8]} 20. d5 {[%clk 0:02:15.4]} 20... Ne5 {[%clk 0:01:34.8]}
21. Be4 {[%clk 0:02:07]} 21... Qh4 {[%clk 0:01:30.6]} 22. f4 {[%clk 0:01:54.2]}
22... Ng4 {[%clk 0:01:10.8]} 23. g3 {[%clk 0:01:53.8]} 23... Qf6 {[%clk
0:00:53.2]} 24. d6 {[%clk 0:01:53.7]} 24... Qd4+ {[%clk 0:00:47]} 25. Qxd4
{[%clk 0:01:53.3]} 25... Bxd4+ {[%clk 0:00:47.8]} 26. Kg2 {[%clk 0:01:54.1]}
26... Ne3+ {[%clk 0:00:30.2]} 27. Kf3 {[%clk 0:01:53]} 27... Nd5 {[%clk
0:00:29.8]} 28. d7 {[%clk 0:01:15.6]} 28... Rd8 {[%clk 0:00:29.3]} 29. Rc8
{[%clk 0:01:14.9]} 29... Bf6 {[%clk 0:00:28.6]} 30. g4 {[%clk 0:01:13.3]} 30...
Kg7 {[%clk 0:00:06.5]} 31. g5 {[%clk 0:01:11.5]} 31... Rxd7 {[%clk 0:00:06.3]}
32. Bf8+ {[%clk 0:01:10.5]} 1-0

[Event "Early-Titled-Tuesday-Blitz-October-17-2023"]
[Site "Chess.com"]
[Date "2023.10.17"]
[Round "1"]
[White "UK_23"]
[Black "KChor05TTV"]
[Result "0-1"]
[WhiteElo "2418"]
[BlackElo "2714"]
[TimeControl "180+1"]
[EndTime "8:06:05 PDT"]
[Termination "KChor05TTV won by resignation"]

1. e4 {[%clk 0:03:00.9]} 1... c5 {[%clk 0:02:59.9]} 2. Nf3 {[%clk 0:03:01]} 2...
Nc6 {[%clk 0:02:59.7]} 3. Bb5 {[%clk 0:03:00]} 3... g6 {[%clk 0:02:58]} 4. O-O
{[%clk 0:02:56.6]} 4... Bg7 {[%clk 0:02:57.8]} 5. Re1 {[%clk 0:02:51.4]} 5... e5
{[%clk 0:02:57.4]} 6. c3 {[%clk 0:02:46.6]} 6... Nge7 {[%clk 0:02:55.3]} 7. d4
{[%clk 0:02:32.6]} 7... cxd4 {[%clk 0:02:42]} 8. cxd4 {[%clk 0:02:31.6]} 8...
exd4 {[%clk 0:02:34.2]} 9. e5 {[%clk 0:02:27.7]} 9... O-O {[%clk 0:02:23.7]} 10.
Na3 {[%clk 0:02:10.9]} 10... d6 {[%clk 0:02:09.6]} 11. exd6 {[%clk 0:01:51]}
11... Qxd6 {[%clk 0:02:10.5]} 12. Nc4 {[%clk 0:01:05.2]} 12... Qc5 {[%clk
0:02:02.1]} 13. Bxc6 {[%clk 0:00:53.5]} 13... Nxc6 {[%clk 0:02:03]} 14. b3
{[%clk 0:00:36]} 14... Rd8 {[%clk 0:01:47.2]} 15. Ba3 {[%clk 0:00:34.1]} 15...
Qh5 {[%clk 0:01:43.7]} 16. Rc1 {[%clk 0:00:28.1]} 16... Bg4 {[%clk 0:01:41.5]}
17. Ncd2 {[%clk 0:00:23.5]} 17... d3 {[%clk 0:01:38.8]} 18. h3 {[%clk
0:00:23.5]} 18... Be6 {[%clk 0:01:38.3]} 19. Ne4 {[%clk 0:00:20.6]} 19... Qa5
{[%clk 0:01:16.3]} 20. Bc5 {[%clk 0:00:15.4]} 20... Bf5 {[%clk 0:01:08.1]} 21.
Ng3 {[%clk 0:00:12.9]} 21... Be6 {[%clk 0:01:01.8]} 22. b4 {[%clk 0:00:12.3]}
22... Nxb4 {[%clk 0:01:00.3]} 23. Qd2 {[%clk 0:00:12.8]} 23... Nc6 {[%clk
0:00:55.7]} 24. Qxa5 {[%clk 0:00:10.6]} 24... Nxa5 {[%clk 0:00:56.6]} 25. Be7
{[%clk 0:00:11.1]} 25... d2 {[%clk 0:00:52.8]} 26. Bxd8 {[%clk 0:00:10.2]} 26...
dxe1=Q+ {[%clk 0:00:52.7]} 27. Rxe1 {[%clk 0:00:10.3]} 27... Rxd8 {[%clk
0:00:53.6]} 0-1

[Event "Early-Titled-Tuesday-Blitz-October-17-2023"]
[Site "Chess.com"]
[Date "2023.10.17"]
[Round "1"]
[White "DanyKopy"]
[Black "MikeSailer"]
[Result "1-0"]
[WhiteElo "2541"]
[BlackElo "2083"]
[TimeControl "180+1"]
[EndTime "8:06:05 PDT"]
[Termination "DanyKopy won by resignation"]

1. d4 {[%clk 0:02:52.7]} 1... g6 {[%clk 0:02:56.7]} 2. e4 {[%clk 0:02:49.4]}
2... Bg7 {[%clk 0:02:57.2]} 3. Nc3 {[%clk 0:02:42]} 3... c5 {[%clk 0:02:57]} 4.
dxc5 {[%clk 0:02:40.8]} 4... Bxc3+ {[%clk 0:02:51.7]} 5. bxc3 {[%clk 0:02:41.7]}
5... Qa5 {[%clk 0:02:49.6]} 6. Bd2 {[%clk 0:02:39.3]} 6... Nf6 {[%clk
0:02:44.5]} 7. Bd3 {[%clk 0:02:38.6]} 7... Qxc5 {[%clk 0:02:39.7]} 8. Nf3 {[%clk
0:02:38.6]} 8... d5 {[%clk 0:02:24.3]} 9. e5 {[%clk 0:02:35.8]} 9... Ne4 {[%clk
0:02:20]} 10. O-O {[%clk 0:02:29.4]} 10... Nxd2 {[%clk 0:02:18.2]} 11. Qxd2
{[%clk 0:02:28.2]} 11... Bg4 {[%clk 0:02:07.3]} 12. Nd4 {[%clk 0:02:27.6]} 12...
O-O {[%clk 0:01:59.6]} 13. Rab1 {[%clk 0:02:25.1]} 13... Nc6 {[%clk 0:01:54]}
14. h3 {[%clk 0:02:16.6]} 14... Bc8 {[%clk 0:01:38.2]} 15. Qe3 {[%clk
0:02:16.2]} 15... e6 {[%clk 0:01:19.9]} 16. Rb3 {[%clk 0:01:56.5]} 16... b6
{[%clk 0:01:13.3]} 17. f4 {[%clk 0:01:34.5]} 17... Bb7 {[%clk 0:00:56.2]} 18. g4
{[%clk 0:01:33.4]} 18... Na5 {[%clk 0:00:44.5]} 19. f5 {[%clk 0:01:25.8]} 19...
Nxb3 {[%clk 0:00:43.9]} 20. axb3 {[%clk 0:01:14.1]} 20... Qxc3 {[%clk
0:00:41.8]} 21. f6 {[%clk 0:01:10.7]} 21... Kh8 {[%clk 0:00:42.3]} 22. Nf3
{[%clk 0:00:57.4]} 22... d4 {[%clk 0:00:13.7]} 23. Qh6 {[%clk 0:00:56.8]} 23...
Rg8 {[%clk 0:00:13.4]} 24. Ng5 {[%clk 0:00:56.2]} 1-0